bitfinex-derivatives/quotes_ETHF0:USTF0_20241017
["timestamp","ask_amount","ask_price","bid_price","bid_amount"]
[1729177590165,40.8,2605.7,2605.1,3.2078]
[1729177590364,41.18388,2605.7,2605.1,3.2078]
[1729177590559,0.38388,2605.6,2605.4,0.3839]
[1729177590955,41.18387,2605.7,2605.5,0.38388]
[1729177591156,0.77980569,2606.1,2606.0,0.38382]
[1729177591359,0.6004,2606.1,2606.0,0.38382]
[1729177591663,0.38379,2606.3,2606.1,0.3838]
[1729177591965,40.8,2606.4,2605.7,3.2078]
[1729177591966,41.18377,2606.4,2606.2,0.38379]
[1729177592166,40.8,2606.4,2606.3,0.38378]
[1729177592552,3.69,2606.9,2606.0,3.2078]
[1729177592756,0.38374,2606.6,2606.4,0.38375]
[1729177592963,0.38372,2606.7,2606.5,0.38374]
[1729177593269,0.38372,2606.7,2606.5,0.38375]
[1729177593270,40.8,2606.6,2606.5,0.38375]
[1729177593564,0.6147,2606.9,2606.2,0.6177]
[1729177593767,0.38372,2606.7,2606.5,0.38373]
[1729177593955,3.69,2606.8,2606.2,0.6177]
[1729177594160,44.49,2606.8,2606.4,0.38375]
[1729177594355,0.38373,2606.7,2606.4,0.38375]
[1729177594570,44.49,2606.8,2606.2,0.6177]
[1729177594970,0.38372,2606.7,2606.3,0.38377]
[1729177595264,44.49,2606.8,2606.3,0.38377]
[1729177595466,0.38374,2606.6,2606.3,0.38377]
[1729177595853,0.38375,2606.5,2606.2,0.6177]
[1729177596059,0.38378,2606.3,2606.2,0.6177]
[1729177596366,0.38375,2606.5,2605.8,0.95963]
[1729177596567,0.38375,2606.5,2605.8,2.24253]
[1729177596866,0.38376,2606.5,2606.2,0.38378]
[1729177597067,0.38376,2606.5,2605.8,2.24253]
[1729177597068,3.2078,2606.7,2605.8,2.24253]
[1729177597261,0.38374,2606.6,2606.0,3.2078]
[1729177597459,0.38374,2606.6,2606.3,0.38377]
[1729177597855,0.38374,2606.6,2606.0,3.2078]
[1729177598056,0.38374,2606.6,2606.4,0.38376]
[1729177598473,0.38373,2606.6,2606.2,0.38378]
[1729177598682,3.2078,2606.7,2606.3,0.38377]
[1729177598965,0.38375,2606.5,2606.3,0.38377]
[1729177599172,0.38375,2606.5,2606.0,3.2078]
[1729177599366,3.2078,2606.7,2606.2,0.38378]
[1729177599367,0.38377,2606.4,2606.2,0.38378]
[1729177599573,3.2078,2606.7,2606.0,3.2078]
[1729177600071,3.2078,2606.7,2606.3,0.38377]
[1729177600272,0.38376,2606.5,2606.3,0.38377]
[1729177600569,0.38377,2606.4,2606.2,0.38378]
[1729177601167,3.2078,2606.7,2606.0,3.2078]
[1729177601472,0.38375,2606.5,2606.4,0.38376]
[1729177601661,3.2078,2606.7,2606.0,3.2078]
[1729177601878,3.69,2606.6,2606.0,3.2078]
[1729177602172,0.6295,2606.6,2605.9,0.9596]
[1729177602375,0.6295,2606.6,2605.8,1.2829]
[1729177602376,0.38378,2606.3,2606.2,0.38379]
[1729177602671,0.38381,2606.1,2606.0,0.38382]
[1729177602900,3.0,2606.4,2605.8,1.2829]
[1729177603069,0.38382,2606.0,2605.9,0.38383]
[1729177603262,0.38382,2606.0,2605.8,1.2829]
[1729177603466,0.38384,2605.9,2605.8,1.2829]
[1729177603767,0.38384,2605.9,2605.8,1.00655]
[1729177603968,0.38384,2605.9,2605.8,0.6227]
[1729177604466,0.38385,2605.8,2605.7,3.2078]
[1729177604662,0.95952,2606.1,2605.5,1.02169]
[1729177604663,3.0,2606.0,2605.5,1.02169]
[1729177604969,0.38388,2605.6,2605.5,1.02168]
[1729177605169,0.38387,2605.8,2605.7,0.38386]
[1729177605771,0.38385,2605.8,2605.7,0.38386]
[1729177606364,0.38388,2605.7,2605.6,0.38387]
[1729177606575,40.8,2605.9,2605.5,0.6378]
[1729177606963,40.8,2605.9,2605.6,0.38386]
[1729177606964,0.38388,2605.7,2605.6,0.38386]
[1729177607373,0.38386,2605.8,2605.7,0.38385]
[1729177608078,40.8,2606.0,2605.5,3.8456]
[1729177608279,0.38386,2605.8,2605.7,0.38384]
[1729177608473,41.18383,2606.0,2605.9,0.38384]
[1729177608780,0.3838,2606.2,2606.1,0.38379]
[1729177609077,0.38379,2606.3,2606.2,0.38379]
[1729177609284,0.3838,2606.2,2606.1,0.3838]
[1729177609490,0.38379,2606.3,2605.8,4.16742]
[1729177609689,0.3838,2606.2,2606.1,0.3838]
[1729177610291,0.3838,2606.2,2605.8,4.16743]
[1729177610292,40.8,2606.4,2605.8,3.2078]
[1729177610487,0.38378,2606.3,2606.2,0.38378]
[1729177610889,41.18377,2606.4,2606.3,0.38378]
[1729177611687,0.38374,2606.6,2606.5,0.38375]
[1729177612083,40.8,2606.6,2606.5,0.38375]
[1729177612286,0.95898,2607.6,2606.6,0.95934]
[1729177612600,1.3808,2607.8,2607.3,3.0]
[1729177612791,0.38358,2607.7,2607.5,0.3836]
[1729177613103,0.38358,2607.7,2607.3,3.0]
[1729177613286,0.6493,2608.0,2607.3,3.0]
[1729177613592,0.38358,2607.7,2607.5,0.38359]
[1729177615789,0.83046723,2608.0,2607.1,7.84694]
[1729177616092,0.38362,2607.4,2607.2,0.38364]
[1729177616397,0.38361,2607.5,2607.3,0.38362]
[1729177616597,0.38362,2607.4,2607.2,0.38364]
[1729177616894,3.2078,2607.8,2607.1,3.2078]
[1729177617294,0.38361,2607.5,2607.3,0.38362]
[1729177617803,0.38361,2607.4,2607.1,3.2078]
[1729177618095,0.38361,2607.4,2607.3,0.38363]
[1729177618399,0.38363,2607.4,2607.3,0.38363]
[1729177618587,0.95895,2607.7,2607.2,0.38363]
[1729177618588,0.38363,2607.3,2607.2,0.38363]
[1729177618899,0.95895,2607.7,2607.1,3.2078]
[1729177619091,0.38364,2607.3,2607.2,0.38364]
[1729177620402,0.38364,2607.2,2607.1,3.59145]
[1729177620702,3.8519,2607.8,2607.1,3.2078]
[1729177620908,3.8519,2607.8,2607.2,1.61921]
[1729177620909,0.38359,2607.6,2607.2,1.61921]
[1729177621203,0.17923351,2608.1,2607.4,6.8878]
[1729177621394,0.38354,2608.0,2607.9,0.38354]
[1729177621700,0.38355,2607.9,2607.7,0.38356]
[1729177621905,40.8,2608.2,2607.5,0.6854]
[1729177622202,0.38356,2607.8,2607.7,0.38357]
[1729177622396,4.16661,2608.1,2607.6,0.38358]
[1729177622600,0.38356,2607.8,2607.6,0.38359]
[1729177622798,3.2078,2608.1,2607.5,0.6854]
[1729177622994,0.38355,2607.9,2607.7,0.38356]
[1729177623205,0.38351,2608.2,2608.0,0.38352]
[1729177623397,0.38351,2608.2,2607.7,3.2078]
[1729177623398,0.38349,2608.3,2608.1,0.38351]
[1729177623598,41.18349,2608.3,2608.1,0.38351]
[1729177623801,40.8,2608.3,2608.2,0.3835]
[1729177624498,40.8,2608.3,2608.0,3.2078]
[1729177624499,0.6648,2608.5,2608.0,3.2078]
[1729177624904,0.6648,2608.5,2608.1,0.38351]
[1729177625106,41.4648,2608.5,2608.1,0.38351]
[1729177625308,0.38351,2608.1,2607.8,0.6959]
[1729177625605,45.1448,2608.5,2607.8,0.6959]
[1729177625808,0.38351,2608.2,2608.0,0.38352]
[1729177626206,48.3526,2608.5,2607.8,0.6959]
[1729177626404,0.38355,2607.9,2607.7,3.59136]
[1729177626710,0.95874,2608.3,2607.7,3.2078]
[1729177626711,3.68,2608.3,2607.7,3.2078]
[1729177627012,0.38354,2607.9,2607.8,0.38355]
[1729177627510,0.38355,2607.9,2607.8,0.38355]
[1729177627994,4.63873,2608.3,2607.7,3.2078]
[1729177628199,3.68,2608.3,2607.7,3.2078]
[1729177628399,1.34216,2608.4,2608.0,0.38353]
[1729177628601,0.38352,2608.1,2608.0,0.38353]
[1729177628794,0.3835,2608.2,2608.1,0.38351]
[1729177629007,44.6726,2608.5,2608.2,0.38349]
[1729177629508,0.38347,2608.4,2608.2,0.38349]
[1729177629699,0.38348,2608.3,2608.2,0.38349]
[1729177630205,41.4648,2608.5,2607.9,0.692]
[1729177630504,0.3835,2608.2,2608.1,0.38351]
[1729177630705,41.4648,2608.5,2607.9,0.692]
[1729177630902,0.38352,2608.1,2608.0,0.38352]
[1729177631201,42.42345,2608.5,2607.9,0.692]
[1729177631202,3.68,2608.3,2607.9,0.692]
[1729177631404,0.38351,2608.1,2607.7,3.59136]
[1729177631598,0.38354,2607.9,2607.8,0.38355]
[1729177631908,3.68,2608.3,2607.7,3.2078]
[1729177632105,0.38354,2608.0,2607.9,0.38354]
[1729177632307,0.95875,2608.2,2607.7,3.2078]
[1729177632608,0.38356,2607.8,2607.7,3.2078]
[1729177632807,0.95875,2608.2,2607.4,0.6546]
[1729177633007,0.38358,2607.7,2607.6,0.38358]
[1729177633205,1.324,2608.0,2607.4,0.6546]
[1729177633407,1.324,2608.0,2607.9,0.38353]
[1729177633408,0.38354,2608.0,2607.9,0.38353]
[1729177634501,0.38353,2608.1,2608.0,0.38352]
[1729177635004,3.2078,2608.3,2607.7,4.3429]
[1729177635201,3.2078,2608.3,2607.7,0.6629]
[1729177635411,0.95876,2608.2,2607.7,0.6629]
[1729177635616,0.38356,2607.8,2607.7,0.6629]
[1729177635906,0.38361,2607.4,2607.3,3.2078]
[1729177639311,0.38361,2607.4,2607.3,3.59143]
[1729177640317,0.38361,2607.4,2607.3,3.2078]
[1729177640706,0.38369,2606.9,2606.8,3.5915]
[1729177640900,0.38372,2606.7,2606.6,1.80713]
[1729177641602,0.6982,2607.1,2606.7,0.3837]
[1729177641603,0.38372,2606.8,2606.7,0.3837]
[1729177642620,0.3837,2606.9,2606.8,0.38368]
[1729177643415,0.38369,2607.0,2606.9,0.38368]
[1729177643609,0.38367,2607.1,2607.0,0.38367]
[1729177643816,0.38369,2607.0,2606.9,0.38368]
[1729177644008,0.3837,2606.9,2606.8,0.38369]
[1729177644204,44.88764808,2607.5,2606.6,5.7748]
[1729177644402,0.95905,2607.4,2606.7,0.9593]
[1729177644605,0.38367,2607.1,2607.0,0.38366]
[1729177645313,41.67984808,2607.5,2606.7,0.9593]
[1729177645509,41.67984808,2607.5,2606.8,0.95927]
[1729177645708,41.4967,2607.5,2607.2,0.38364]
[1729177645910,0.6967,2607.5,2606.8,3.2078]
[1729177646110,0.6967,2607.5,2607.4,0.38361]
[1729177646320,3.2078,2607.9,2607.5,0.38359]
[1729177646517,0.38358,2607.7,2607.6,0.38358]
[1729177647210,3.9234,2607.9,2607.4,3.68]
[1729177647514,41.75877,2608.2,2607.4,6.8878]
[1729177647719,0.38355,2607.9,2607.8,0.38355]
[1729177648221,3.03613,2608.3,2607.5,0.95899]
[1729177648222,2.25248762,2608.3,2607.5,0.95899]
[1729177648411,3.2078,2608.7,2608.1,0.3835]
[1729177648611,3.2078,2608.7,2607.7,0.95893]
[1729177648612,0.38349,2608.3,2607.8,1.4229]
[1729177648825,0.38349,2608.3,2608.2,0.3835]
[1729177649010,3.2078,2608.7,2608.2,0.3835]
[1729177649316,0.38348,2608.4,2608.2,0.3835]
[1729177649506,4.34280922,2608.7,2608.2,0.38349]
[1729177649706,0.38347,2608.4,2608.2,0.38349]
[1729177649908,0.38347,2608.4,2607.8,4.6307]
[1729177650125,0.17642922,2608.7,2607.9,4.63886]
[1729177650326,0.38344,2608.6,2608.5,0.38345]
[1729177650511,0.38345,2608.6,2608.4,0.38346]
[1729177651318,0.38341,2608.8,2608.4,0.38346]
[1729177651623,2.32031,2608.9,2608.4,0.38346]
[1729177651821,1.3618,2608.9,2607.9,5.29406]
[1729177652113,1.3618,2608.9,2607.9,0.38354]
[1729177652114,0.3835,2608.2,2607.9,0.38354]
[1729177652316,0.95866,2608.5,2607.8,4.6307]
[1729177652625,0.38355,2607.9,2607.8,0.38356]
[1729177653123,0.38354,2607.9,2607.8,0.38355]
[1729177653319,0.38354,2607.9,2607.5,0.95901]
[1729177653320,42.1664,2608.2,2607.4,6.19693]
[1729177653624,0.38355,2607.9,2607.7,0.38356]
[1729177653815,0.38355,2607.9,2607.4,6.19693]
[1729177653816,0.38355,2607.9,2607.8,0.38356]
[1729177654212,0.38353,2608.1,2607.9,0.38354]
[1729177654413,42.1664,2608.2,2607.4,6.19693]
[1729177654716,0.38353,2608.0,2607.9,0.38354]
[1729177655022,42.1664,2608.2,2607.9,0.38354]
[1729177655221,41.1835,2608.2,2608.1,0.38351]
[1729177655416,40.8,2608.2,2608.1,0.38351]
[1729177655724,0.38349,2608.3,2608.2,0.38349]
[1729177656311,0.38346,2608.5,2608.3,0.38348]
[1729177656511,0.38346,2608.5,2607.8,0.95889]
[1729177656512,7.06972771,2608.7,2607.8,0.95889]
[1729177656728,41.75861,2608.6,2608.1,0.3835]
[1729177656908,0.38349,2608.3,2607.9,0.38354]
[1729177657111,0.38349,2608.3,2608.2,0.3835]
[1729177657419,3.2078,2608.4,2607.5,5.18966896]
[1729177657615,0.95872,2608.3,2607.5,0.99866896]
[1729177657812,0.38353,2608.0,2607.5,0.95901]
[1729177658009,1.3837,2608.2,2607.5,0.95901]
[1729177658235,1.3837,2608.2,2607.8,0.38354]
[1729177658236,0.38354,2608.0,2607.8,0.38354]
[1729177658519,0.38354,2608.0,2607.4,7.19557896]
[1729177658520,1.3837,2608.2,2607.4,7.19557896]
[1729177658710,4.16659,2608.1,2607.6,0.38358]
[1729177658912,0.38357,2607.7,2607.6,0.38358]
[1729177659115,0.38356,2607.8,2607.7,0.38357]
[1729177659312,4.86219,2608.1,2607.4,5.54173]
[1729177659516,0.38355,2607.9,2607.8,0.38356]
[1729177659717,0.38356,2607.8,2607.7,0.38356]
[1729177660113,3.9034,2608.1,2607.4,6.54039896]
[1729177660314,0.38355,2607.9,2607.8,0.38355]
[1729177660815,4.8622,2608.1,2607.4,5.58136896]
[1729177661023,0.38357,2607.8,2607.7,0.38357]
[1729177661423,0.38356,2607.9,2607.8,0.38355]
[1729177661822,0.38356,2607.8,2607.7,0.38356]
[1729177663126,1.34235,2608.0,2607.7,0.38356]
[1729177663326,0.38357,2607.8,2607.7,0.38356]
[1729177663625,0.38359,2607.7,2607.6,0.38358]
[1729177663825,0.38357,2607.8,2607.7,0.38356]
[1729177664022,0.38359,2607.7,2607.6,0.38358]
[1729177664219,3.9034,2608.1,2607.4,4.5827]
[1729177664531,3.9034,2608.1,2607.0,0.7243]
[1729177664532,0.38366,2607.1,2607.0,0.7243]
[1729177664724,3.2078,2607.5,2606.8,0.703]
[1729177664725,0.95909,2607.3,2606.8,0.703]
[1729177664913,2.36369,2607.3,2606.8,0.703]
[1729177665121,0.38369,2606.9,2606.8,0.703]
[1729177665316,0.38369,2606.9,2606.7,0.38371]
[1729177665317,4.16693,2607.2,2606.7,0.38372]
[1729177665517,4.16693,2607.2,2606.6,0.7243]
[1729177665826,0.3837,2606.9,2606.8,0.38369]
[1729177666123,3.2078,2607.2,2606.6,1.68363]
[1729177666324,3.2078,2607.2,2606.7,0.9593]
[1729177666523,0.38367,2607.1,2607.0,0.38366]
[1729177666728,3.59145,2607.2,2607.1,0.38366]
[1729177667123,3.59145,2607.2,2606.7,0.9593]
[1729177667124,0.38367,2607.1,2607.0,0.38367]
[1729177667321,0.38366,2607.1,2607.0,0.38367]
[1729177667523,3.2078,2607.2,2606.6,0.7243]
[1729177667724,3.2078,2607.2,2606.7,0.9593]
[1729177667915,3.59145,2607.2,2606.7,0.9593]
[1729177668121,3.2078,2607.2,2607.1,0.38366]
[1729177668430,25.0,3154.0,2607.4,0.38361]
[1729177668431,0.38361,2607.5,2607.4,0.38361]
[1729177668627,4.1667,2607.8,2607.3,0.38362]
[1729177668929,0.38361,2607.5,2607.4,0.38361]
[1729177669124,0.38361,2607.5,2607.1,0.7262]
[1729177669423,4.1667,2607.8,2607.3,0.38362]
[1729177669625,4.1667,2607.8,2607.4,0.38361]
[1729177669626,0.38361,2607.5,2607.4,0.38361]
[1729177669925,0.38357,2607.7,2607.6,0.38358]
[1729177670130,3.2078,2607.8,2607.2,5.34871]
[1729177670330,4.6424,2608.2,2607.5,3.68]
[1729177670629,4.6424,2608.2,2608.0,0.38353]
[1729177670827,4.6424,2608.2,2607.6,0.95897]
[1729177670828,0.38351,2608.1,2607.9,0.38353]
[1729177671529,0.38351,2608.1,2607.7,0.7369]
[1729177671726,4.6424,2608.2,2608.1,0.38351]
[1729177671727,4.2965,2608.2,2608.1,0.38351]
[1729177671921,4.2965,2608.2,2607.7,1.69582]
[1729177672125,3.5913,2608.2,2607.7,1.69582]
[1729177672424,0.38351,2608.1,2607.7,0.7369]
[1729177672923,0.38351,2608.1,2608.0,0.38353]
[1729177673925,0.38351,2608.1,2607.7,0.7369]
[1729177673926,5.02898547,2608.5,2607.7,1.69581]
[1729177674232,0.38349,2608.3,2608.1,0.3835]
[1729177674527,0.38349,2608.3,2608.2,0.3835]
[1729177674929,3.8893,2608.5,2608.1,0.38351]
[1729177675129,0.3835,2608.2,2608.1,0.38351]
[1729177675424,0.6815,2608.5,2607.9,0.6954]
[1729177675928,0.3835,2608.3,2608.1,0.3835]
[1729177676123,0.6815,2608.5,2607.9,0.6954]
[1729177676326,0.95868,2608.4,2607.9,0.6954]
[1729177676525,0.38352,2608.1,2607.9,0.38354]
[1729177677923,3.8893,2608.5,2607.7,0.7369]
[1729177678125,1.4018,2608.6,2608.3,0.38348]
[1729177678328,0.38345,2608.5,2608.0,3.68]
[1729177678527,0.686,2608.6,2608.5,0.38345]
[1729177678722,0.686,2608.6,2608.2,0.95875]
[1729177678723,0.38345,2608.6,2608.4,0.38346]
[1729177679123,0.95853,2608.8,2608.3,1.06647]
[1729177679335,0.38345,2608.6,2608.4,0.38347]
[1729177679525,0.38345,2608.6,2608.3,0.683]
[1729177679831,0.38345,2608.6,2608.5,0.38345]
[1729177680126,0.38345,2608.6,2608.3,0.683]
[1729177680335,1.3984,2608.9,2608.0,3.68]
[1729177680540,0.38345,2608.6,2608.4,0.38346]
[1729177680829,0.38342,2608.7,2608.6,0.38343]
[1729177681326,1.3984,2608.9,2608.3,2.40751]
[1729177681528,44.96623,2609.1,2608.6,0.38343]
[1729177681529,0.38343,2608.7,2608.6,0.38343]
[1729177681730,4.34578677,2609.1,2608.3,1.4488]
[1729177681925,0.38344,2608.6,2608.5,0.38345]
[1729177682121,0.38344,2608.6,2608.3,1.4488]
[1729177682122,3.2078,2608.8,2608.3,1.83227]
[1729177682328,0.38348,2608.3,2608.2,3.2078]
[1729177682529,0.38348,2608.3,2608.2,3.5913]
[1729177682729,0.38348,2608.3,2608.2,3.2078]
[1729177682937,0.38348,2608.3,2608.2,3.5913]
[1729177683640,0.38348,2608.3,2608.2,3.2078]
[1729177683831,0.38348,2608.3,2608.2,3.5913]
[1729177684227,0.38348,2608.3,2608.2,3.2078]
[1729177684726,4.6387,2608.4,2607.9,1.4488]
[1729177684926,0.38353,2608.0,2607.9,1.4488]
[1729177685436,0.38353,2608.0,2607.9,1.83234]
[1729177685737,0.38353,2608.0,2607.9,0.7189]
[1729177685930,0.38353,2608.0,2607.5,3.2078]
[1729177685931,0.95882,2608.1,2607.6,0.38357]
[1729177686138,0.38358,2607.7,2607.6,0.38357]
[1729177686532,3.2078,2608.2,2607.8,0.38355]
[1729177686533,0.38356,2607.9,2607.8,0.38355]
[1729177687338,0.38359,2607.6,2607.5,5.02318]
[1729177687640,0.38359,2607.6,2607.2,6.14876896]
[1729177687641,0.38363,2607.4,2607.3,0.38361]
[1729177687934,0.95894,2607.7,2607.0,5.16563896]
[1729177687935,0.38363,2607.3,2607.2,1.10673]
[1729177688630,0.38363,2607.3,2607.2,0.7231]
[1729177688938,0.38362,2607.4,2607.3,0.38361]
[1729177689139,0.38363,2607.3,2607.2,1.10673]
[1729177689329,0.38363,2607.3,2607.2,0.7231]
[1729177689727,0.38363,2607.3,2607.2,1.10674]
[1729177690843,0.38363,2607.3,2607.2,0.7231]
[1729177691147,3.2078,2607.3,2606.9,0.38367]
[1729177691330,3.2078,2607.3,2606.7,1.0742]
[1729177691331,0.3837,2606.8,2606.7,1.0742]
[1729177691839,0.3837,2606.8,2606.7,4.9102]
[1729177692135,0.3837,2606.8,2606.7,1.0742]
[1729177692338,0.95905,2607.4,2606.7,0.6905]
[1729177692533,0.38362,2607.4,2607.3,0.38362]
[1729177692738,3.2078,2607.7,2607.0,4.16698]
[1729177692938,0.38361,2607.5,2607.4,0.3836]
[1729177693336,0.3836,2607.6,2607.5,0.38359]
[1729177693636,0.38361,2607.5,2607.4,0.3836]
[1729177693828,0.38359,2607.6,2607.5,0.38359]
[1729177694633,0.38359,2607.6,2607.3,0.7103]
[1729177694836,0.38359,2607.6,2607.5,0.3836]
[1729177695028,0.38359,2607.6,2607.3,0.7103]
[1729177695338,0.38361,2607.4,2607.3,1.09392]
[1729177695530,3.2078,2607.7,2607.2,0.7468]
[1729177695731,0.95898,2607.6,2606.9,0.7173]
[1729177695932,0.95898,2607.6,2607.2,0.38364]
[1729177695933,0.38363,2607.3,2607.2,0.38364]
[1729177696640,0.38362,2607.4,2607.3,0.38362]
[1729177697634,0.38363,2607.3,2607.2,0.38363]
[1729177698037,4.16674,2607.7,2606.9,0.7173]
[1729177698238,0.38366,2607.1,2607.0,0.38367]
[1729177698435,4.16674,2607.7,2606.9,0.7173]
[1729177698635,0.38364,2607.3,2607.2,0.38364]
[1729177700342,0.38363,2607.4,2607.3,0.38362]
[1729177701137,0.38363,2607.4,2607.0,0.95918]
[1729177701138,1.68728,2607.9,2606.9,0.7173]
[1729177701341,0.38358,2607.7,2607.6,0.38357]
[1729177701538,0.38357,2607.8,2607.7,0.38356]
[1729177703248,44.7254,2608.0,2607.5,0.6954]
[1729177703438,0.38358,2607.7,2607.6,0.38358]
[1729177705447,0.38357,2607.8,2607.7,0.38356]
[1729177706149,0.38357,2607.7,2607.6,0.38357]
[1729177706648,0.38352,2608.1,2608.0,0.38352]
[1729177706948,3.2078,2608.3,2608.2,0.3835]
[1729177707146,3.2078,2608.3,2607.8,0.95889]
[1729177707147,0.3835,2608.2,2608.1,0.3835]
[1729177707445,3.2078,2608.3,2607.8,4.90569]
[1729177707446,3.59129,2608.3,2608.2,0.3835]
[1729177707643,3.2078,2608.3,2608.2,0.3835]
[1729177707843,0.38347,2608.4,2608.3,0.38348]
[1729177708040,0.38349,2608.3,2608.2,0.3835]
[1729177708245,44.89297721,2608.7,2608.1,0.7266]
[1729177708246,42.64375721,2608.7,2608.1,0.7266]
[1729177708544,3.2078,2609.0,2608.2,3.2078]
[1729177708748,1.3684,2609.1,2608.8,0.3834]
[1729177708950,1.3684,2609.1,2608.5,0.95864]
[1729177709147,0.38338,2609.0,2608.6,3.2078]
[1729177709444,44.0078,2609.3,2608.5,0.6959]
[1729177709445,0.3834,2608.9,2608.7,1.11002]
[1729177709634,44.0078,2609.3,2608.7,0.7266]
[1729177709839,0.38337,2609.1,2608.9,0.38339]
[1729177710241,0.38339,2609.0,2608.8,0.3834]
[1729177710448,44.0078,2609.3,2608.7,0.7266]
[1729177710643,0.38337,2609.1,2608.9,0.38338]
[1729177710848,0.38338,2609.0,2608.8,0.3834]
[1729177711053,48.64616,2609.3,2608.7,0.7266]
[1729177711353,48.64616,2609.3,2608.7,1.11001]
[1729177711354,0.3834,2608.9,2608.7,1.11001]
[1729177711847,0.3834,2608.9,2608.7,1.11002]
[1729177712149,0.38341,2608.8,2608.7,1.11002]
[1729177712346,0.38341,2608.8,2608.7,0.7266]
[1729177712547,48.64616,2609.3,2608.7,1.11002]
[1729177712548,0.3834,2608.9,2608.7,1.11002]
[1729177713251,0.38341,2608.8,2608.7,0.7266]
[1729177713450,0.95838,2609.2,2608.7,0.7266]
[1729177713647,0.38341,2608.9,2608.7,1.11002]
[1729177713846,48.64616,2609.3,2608.7,0.7266]
[1729177714042,0.38338,2609.0,2608.8,0.3834]
[1729177714342,44.0078,2609.3,2608.7,0.7266]
[1729177714549,1.06451,2609.5,2609.3,0.38333]
[1729177714751,3.2078,2609.6,2609.0,6.8878]
[1729177714949,3.2078,2609.6,2609.1,0.7521]
[1729177715153,40.8,2609.5,2609.3,0.38333]
[1729177715346,0.38332,2609.4,2609.3,0.38333]
[1729177715551,3.2078,2609.6,2609.1,0.7521]
[1729177716054,3.2078,2609.6,2609.5,0.38331]
[1729177716055,41.18329,2609.6,2609.5,0.38331]
[1729177716249,40.8,2609.6,2609.1,1.71051]
[1729177716447,0.18175535,2609.9,2609.1,0.7521]
[1729177716646,0.95815,2609.9,2609.1,0.7521]
[1729177716841,0.95815,2609.9,2609.4,0.38332]
[1729177717046,0.95815,2609.9,2609.3,0.38333]
[1729177717047,0.38331,2609.5,2609.3,0.38333]
[1729177718046,40.8,2609.8,2609.3,3.68]
[1729177718249,40.8,2609.8,2609.6,0.38328]
[1729177718250,0.38327,2609.8,2609.6,0.38328]
[1729177718653,41.18326,2609.9,2609.7,0.38327]
[1729177719054,0.38326,2609.9,2609.8,0.38326]
[1729177719248,0.38326,2609.9,2609.4,1.458]
[1729177719552,0.38325,2609.9,2609.8,0.38326]
[1729177719759,3.2078,2610.1,2609.4,1.458]
[1729177719952,0.38325,2609.9,2609.4,1.458]
[1729177720154,0.38328,2609.7,2609.6,0.38329]
[1729177720351,0.38328,2609.7,2609.5,0.38329]
[1729177720553,0.38329,2609.6,2609.4,0.7491]
[1729177721056,0.38329,2609.6,2609.5,0.38331]
[1729177721554,0.9581,2610.0,2609.5,0.38331]
[1729177721555,0.38329,2609.7,2609.5,0.38331]
[1729177721850,0.9581,2610.0,2609.4,0.7491]
[1729177722058,0.38331,2609.5,2609.4,1.13242]
[1729177722653,0.3833,2609.6,2609.4,1.13241]
[1729177722954,0.38331,2609.5,2609.4,1.13241]
[1729177723457,0.38331,2609.5,2609.4,0.7491]
[1729177723653,40.8,2609.6,2609.1,0.7521]
[1729177723866,0.38333,2609.4,2609.3,0.38333]
[1729177724054,0.38331,2609.5,2609.4,0.38331]
[1729177724357,0.38331,2609.5,2609.1,0.7521]
[1729177724358,41.1833,2609.6,2609.5,0.38331]
[1729177724853,0.3833,2609.6,2609.1,4.91831]
[1729177725052,0.3833,2609.6,2609.5,0.38331]
[1729177725252,0.38331,2609.5,2609.4,0.38331]
[1729177725447,0.38331,2609.5,2609.1,3.9599]
[1729177725654,40.8,2609.7,2609.1,0.7521]
[1729177725856,0.38332,2609.4,2609.3,0.38332]
[1729177726356,40.8,2609.7,2609.1,3.7421]
[1729177726560,0.38331,2609.5,2609.4,0.38332]
[1729177727461,40.8,2609.7,2609.1,3.7421]
[1729177727647,0.38332,2609.5,2609.4,0.38332]
[1729177727851,0.38332,2609.4,2609.3,0.38333]
[1729177728957,41.75821,2609.7,2609.1,1.13546]
[1729177728958,0.38335,2609.2,2609.1,1.13546]
[1729177729159,0.38335,2609.2,2609.1,0.7521]
[1729177729655,0.95832,2609.4,2609.0,0.38337]
[1729177729656,0.38338,2609.1,2609.0,0.38337]
[1729177729855,1.71028,2609.5,2608.9,0.7277]
[1729177730055,0.38336,2609.2,2609.1,0.38334]
[1729177731656,1.71028,2609.5,2609.0,2.99]
[1729177731657,0.752,2609.5,2609.0,2.99]
[1729177731856,0.38332,2609.5,2609.4,0.38331]
[1729177732361,0.38333,2609.4,2609.3,0.38332]
[1729177732866,0.38335,2609.3,2609.2,0.38334]
[1729177733166,40.8,2609.7,2609.0,2.99]
[1729177733358,0.38337,2609.2,2609.1,0.38335]
[1729177733552,0.38335,2609.3,2609.2,0.38334]
[1729177734871,0.95824,2609.6,2609.5,0.38329]
[1729177734872,0.3833,2609.6,2609.5,0.38329]
[1729177735357,40.8,2609.7,2609.1,3.94842]
[1729177735557,40.8,2609.7,2609.1,2.99]
[1729177735758,40.8,2609.7,2609.2,0.38334]
[1729177735759,0.38334,2609.3,2609.2,0.38334]
[1729177735963,40.8,2609.7,2609.1,2.99]